bitfinex-derivatives/quotes_BTCF0:USTF0_20241231
["timestamp","ask_amount","ask_price","bid_price","bid_amount"]
[1735621991969,0.054073,92619.0,92612.0,0.054077]
[1735621992374,0.054073,92619.0,92613.0,0.0357]
[1735621992778,0.3608,92621.0,92613.0,0.0357]
[1735621992982,0.3608,92631.0,92621.0,0.054072]
[1735621993364,0.3608,92631.0,92624.0,4e-05]
[1735621993969,0.054069,92627.0,92624.0,4e-05]
[1735621994874,0.05407,92625.0,92624.0,4e-05]
[1735621996173,0.05507,92625.0,92624.0,4e-05]
[1735621997080,0.05807,92625.0,92624.0,4e-05]
[1735621998884,0.054072,92622.0,92619.0,0.034113]
[1735621999183,4e-05,92620.0,92619.0,0.034113]
[1735621999967,4e-05,92620.0,92619.0,0.05587754]
[1735622000978,4e-05,92620.0,92619.0,0.02176454]
[1735622001184,4e-05,92620.0,92613.0,0.089777]
[1735622001480,4e-05,92614.0,92613.0,0.0357]
[1735622001682,4e-05,92614.0,92597.0,0.0337]
[1735622001886,0.054081,92606.0,92596.0,0.5907988]
[1735622002092,0.054121,92606.0,92596.0,0.6448848]
[1735622002610,0.053121,92606.0,92605.0,0.3408]
[1735622002885,0.053121,92606.0,92596.0,0.6448848]
[1735622002886,0.054086,92597.0,92596.0,0.5907988]
[1735622003084,0.054086,92597.0,92596.0,0.3965]
[1735622003277,0.054091,92589.0,92588.0,0.0358]
[1735622003477,0.053091,92589.0,92585.0,0.5887988]
[1735622003682,0.053091,92589.0,92587.0,0.02402681]
[1735622003878,0.052091,92589.0,92587.0,0.02402681]
[1735622004480,0.053091,92589.0,92588.0,0.009]
[1735622005082,0.050091,92589.0,92587.0,0.03302681]
[1735622005788,0.050091,92589.0,92588.0,0.009]
[1735622005985,0.050091,92589.0,92588.0,0.013]
[1735622006690,0.050091,92589.0,92588.0,0.009]
[1735622007289,0.049091,92589.0,92587.0,0.02802681]
[1735622007587,0.050091,92589.0,92587.0,0.03702681]
[1735622007984,0.050091,92589.0,92588.0,0.009]
[1735622008384,0.050091,92589.0,92588.0,0.013]
[1735622008691,0.050091,92589.0,92588.0,0.004]
[1735622010381,0.049091,92589.0,92588.0,0.004]
[1735622010582,0.050091,92589.0,92588.0,0.013]
[1735622020686,0.050091,92589.0,92588.0,0.012]
[1735622020999,0.050091,92589.0,92588.0,0.008]
[1735622021192,0.050091,92589.0,92588.0,0.011]
[1735622022502,0.06959738,92589.0,92588.0,0.011]
[1735622024694,0.06959738,92589.0,92571.0,0.035]
[1735622024894,0.054101,92572.0,92571.0,0.035]
[1735622025793,0.054101,92572.0,92571.0,0.041]
[1735622026603,0.054101,92572.0,92571.0,0.4018]
[1735622027303,0.001,92572.0,92571.0,0.4108]
[1735622027504,0.001,92572.0,92571.0,0.48325712]
[1735622028299,0.054092,92587.0,92577.0,0.054098]
[1735622028606,0.054092,92587.0,92586.0,0.00012001]
[1735622031202,0.054092,92587.0,92586.0,0.00112001]
[1735622032708,0.054094,92584.0,92579.0,0.34192001]
[1735622032906,0.054096,92581.0,92579.0,0.34192001]
[1735622033905,0.054096,92581.0,92579.0,0.34492001]
[1735622034298,0.054096,92581.0,92579.0,0.34292001]
[1735622034496,0.054096,92581.0,92579.0,0.34492001]
[1735622037109,0.054096,92581.0,92579.0,0.34392001]
[1735622037599,0.054096,92581.0,92579.0,0.32392001]
[1735622038694,0.054096,92581.0,92579.0,0.002]
[1735622041506,4e-05,92586.0,92579.0,0.002]
[1735622041812,0.054133,92586.0,92579.0,0.056096]
[1735622042314,0.054133,92586.0,92585.0,4e-05]
[1735622042614,0.054133,92586.0,92579.0,0.036136]
[1735622043501,0.054133,92586.0,92579.0,0.038136]
[1735622044003,0.054133,92586.0,92579.0,0.036136]
[1735622044204,0.054133,92586.0,92579.0,0.040136]
[1735622046509,0.054133,92586.0,92579.0,0.036136]
[1735622046807,0.054133,92586.0,92579.0,0.039136]
[1735622047215,0.054093,92585.0,92579.0,0.039136]
[1735622047515,0.22822539,92590.0,92579.0,0.039136]
[1735622047816,0.054094,92583.0,92579.0,0.057096]
[1735622048205,0.054094,92583.0,92582.0,4e-05]
[1735622072438,0.414894,92583.0,92582.0,4e-05]
[1735622075736,0.054105,92565.0,92564.0,0.3608]
[1735622076931,0.054105,92565.0,92564.0,0.3638]
[1735622077139,0.055105,92565.0,92564.0,0.3718]
[1735622077345,0.055105,92565.0,92564.0,0.011]
[1735622087536,0.054105,92565.0,92564.0,0.003]
[1735622087736,0.054105,92565.0,92561.0,0.0349]
[1735622087737,0.054106,92562.0,92561.0,0.0179]
[1735622091447,0.054106,92562.0,92561.0,1.5179]
[1735622091951,0.054106,92562.0,92561.0,0.0179]
[1735622092670,0.054106,92562.0,92560.0,0.054107]
[1735622092848,4e-05,92567.0,92557.0,1.5]
[1735622093040,4e-05,92567.0,92557.0,1.61230808]
[1735622093241,0.01691618,92576.0,92563.0,0.054106]
[1735622093546,0.3608,92579.0,92563.0,0.054106]
[1735622093547,0.054105,92566.0,92563.0,0.054106]
[1735622093746,0.054105,92566.0,92564.0,0.414905]
[1735622094951,0.055105,92566.0,92564.0,0.414905]
[1735622095955,0.055105,92566.0,92565.0,0.0337]
[1735622096452,0.057105,92566.0,92565.0,0.0337]
[1735622097657,0.057105,92566.0,92565.0,0.0137]
[1735622099052,0.057105,92566.0,92565.0,0.3745]
[1735622102462,0.003,92566.0,92565.0,0.3745]
[1735622102763,0.003,92566.0,92565.0,0.37108188]
[1735622103349,0.003,92566.0,92565.0,1.87108188]
[1735622103856,0.003,92566.0,92565.0,0.37108188]
[1735622105858,0.003,92566.0,92565.0,0.40438188]
[1735622107672,0.003,92566.0,92565.0,0.38438188]
[1735622108862,0.003,92566.0,92565.0,0.35108188]
[1735622111463,0.003,92566.0,92565.0,0.3345]
[1735622112662,0.003,92566.0,92565.0,0.3145]
[1735622116069,0.003,92566.0,92564.0,0.01548648]
[1735622116368,0.003,92566.0,92563.0,0.054106]
[1735622116768,0.003,92566.0,92565.0,0.3608]
[1735622117678,0.003,92566.0,92563.0,0.054106]
[1735622118169,0.001,92566.0,92563.0,0.054106]
[1735622118671,0.002,92566.0,92563.0,0.054106]
[1735622118873,0.002,92566.0,92563.0,0.034106]
[1735622119270,0.056104,92566.0,92563.0,0.04966367]
[1735622119970,0.054107,92562.0,92557.0,0.3608]
[1735622120173,0.0327,92561.0,92557.0,0.3608]
[1735622120675,0.088208,92560.0,92557.0,0.3608]
[1735622121170,0.088208,92560.0,92557.0,0.37639654]
[1735622121374,0.054109,92559.0,92557.0,0.37839654]
[1735622121972,0.054109,92559.0,92557.0,0.37639654]
[1735622122173,0.054109,92559.0,92557.0,0.37839654]
[1735622122689,0.054109,92559.0,92557.0,0.35839654]
[1735622123676,0.054109,92559.0,92557.0,0.3428]
[1735622124868,0.054109,92559.0,92557.0,0.002]
[1735622130294,0.054109,92559.0,92557.0,0.056109]
[1735622130679,0.054109,92559.0,92558.0,1.5]
[1735622130880,0.054109,92559.0,92557.0,0.056109]
[1735622131785,0.054109,92559.0,92558.0,0.001]
[1735622132482,0.05411,92557.0,92552.0,0.05573261]
[1735622132893,0.05211,92557.0,92552.0,0.05573261]
[1735622133686,0.054111,92554.0,92552.0,0.00162061]
[1735622134085,0.053111,92554.0,92552.0,0.00262061]
[1735622134677,0.053111,92554.0,92552.0,0.00662061]
[1735622139899,0.053111,92554.0,92552.0,0.005]
[1735622141389,0.06736201,92554.0,92552.0,0.005]
[1735622141589,0.053111,92554.0,92552.0,0.005]
[1735622162013,0.0148488,92557.0,92533.0,0.00162106]
[1735622162014,0.054123,92534.0,92533.0,0.00162106]
[1735622162413,0.054124,92532.0,92530.0,0.3963]
[1735622162716,0.054124,92532.0,92530.0,0.3608]
[1735622163107,0.05413,92521.0,92520.0,0.3608]
[1735622163915,4e-05,92528.0,92514.0,0.032]
[1735622163916,0.054134,92515.0,92514.0,0.032]
[1735622164510,0.045134,92515.0,92514.0,0.04634041]
[1735622164709,0.045134,92515.0,92514.0,0.032]
[1735622165007,0.045134,92515.0,92514.0,0.035]
[1735622165406,0.045134,92515.0,92514.0,0.003]
[1735622165607,0.405934,92515.0,92514.0,0.004]
[1735622166304,0.405934,92515.0,92514.0,0.003]
[1735622167617,0.405934,92515.0,92513.0,0.013]
[1735622168011,0.406934,92515.0,92513.0,0.013]
[1735622168607,0.407934,92515.0,92513.0,0.013]
[1735622168902,0.409934,92515.0,92513.0,0.013]
[1735622169103,0.407934,92515.0,92513.0,0.013]
[1735622169309,0.408934,92515.0,92513.0,0.013]
[1735622172916,0.408934,92515.0,92504.0,0.00162137]
[1735622173216,0.054139,92506.0,92504.0,0.00162137]
[1735622173522,0.054141,92503.0,92502.0,0.0302]
[1735622173906,0.3608,92505.0,92490.0,0.07369068]
[1735622174222,0.053145,92496.0,92491.0,0.0652]
[1735622174409,0.053145,92496.0,92491.0,0.07977377]
[1735622174613,0.053145,92496.0,92491.0,0.0652]
[1735622175525,0.054145,92496.0,92495.0,0.36084]
[1735622176809,0.054145,92496.0,92495.0,0.36284]
[1735622184431,0.054152,92484.0,92480.0,0.0328]
[1735622185630,0.055152,92484.0,92480.0,0.0328]
[1735622186634,0.054154,92481.0,92480.0,0.0328]
[1735622186830,0.050154,92481.0,92480.0,0.0328]
[1735622187227,0.050154,92481.0,92479.0,0.3608]
[1735622187724,0.050154,92481.0,92480.0,0.004]
[1735622188539,0.051154,92481.0,92480.0,0.004]
[1735622188733,0.051154,92481.0,92473.0,0.3608]
[1735622188734,0.054158,92474.0,92473.0,0.3608]
[1735622189232,4e-05,92478.0,92467.0,0.0319]
[1735622189533,0.054161,92468.0,92467.0,0.0319]
[1735622189732,0.051161,92468.0,92467.0,0.0319]
[1735622190254,0.051161,92468.0,92467.0,0.03194]
[1735622191431,0.053161,92468.0,92467.0,0.03194]
[1735622192132,0.054161,92468.0,92467.0,0.03194]
[1735622192836,0.054161,92468.0,92467.0,0.01194]
[1735622193141,0.054161,92468.0,92467.0,0.02505751]
[1735622193339,0.054161,92468.0,92467.0,1.52505751]
[1735622194442,0.054161,92468.0,92467.0,0.02505751]
[1735622196535,0.003,92468.0,92467.0,0.02505751]
[1735622197032,4e-05,92472.0,92467.0,0.02505751]
[1735622197336,4e-05,92472.0,92471.0,0.415]
[1735622197726,0.0313,92498.0,92471.0,0.36084]
[1735622197932,0.0313,92498.0,92488.0,0.11253971]
[1735622198138,0.0313,92498.0,92497.0,4e-05]
[1735622198342,0.085444,92498.0,92497.0,4e-05]
[1735622199344,0.093444,92498.0,92497.0,4e-05]
[1735622200433,0.098444,92498.0,92497.0,4e-05]
[1735622200840,0.131044,92498.0,92497.0,4e-05]
[1735622202544,0.054154,92481.0,92480.0,0.11253971]
[1735622202845,0.054154,92481.0,92479.0,0.3608]
[1735622203843,0.056154,92481.0,92479.0,0.3608]
[1735622204146,0.0301,92480.0,92479.0,0.3608]
[1735622205252,0.054158,92474.0,92472.0,0.3608]
[1735622208243,0.055158,92474.0,92472.0,0.3608]
[1735622209032,0.056158,92474.0,92472.0,0.3608]
[1735622209349,0.058158,92474.0,92472.0,0.3608]
[1735622211244,0.056158,92474.0,92472.0,0.3608]
[1735622211436,0.059158,92474.0,92472.0,0.3608]
[1735622211752,0.054165,92462.0,92461.0,0.3608]
[1735622212944,0.055165,92462.0,92461.0,0.3608]
[1735622213751,0.055165,92462.0,92453.0,0.3624223]
[1735622213946,0.05417,92454.0,92453.0,0.3624223]
[1735622215153,0.05517,92454.0,92453.0,0.3624223]
[1735622220454,0.05517,92454.0,92453.0,0.0016223]
[1735622223459,0.054173,92449.0,92448.0,0.3608]
[1735622223658,0.054173,92449.0,92434.0,0.00162281]
[1735622223659,0.054178,92440.0,92434.0,0.00162281]
[1735622225159,0.055178,92440.0,92434.0,0.00162281]
[1735622228263,0.055178,92440.0,92435.0,0.054181]
[1735622228467,0.001,92440.0,92434.0,0.00162281]
[1735622228761,0.001,92440.0,92439.0,1.8608]
[1735622229758,0.001,92440.0,92439.0,0.3608]
[1735622234068,0.054215,92445.0,92439.0,0.3608]
[1735622234366,0.00091291,92440.0,92439.0,0.3608]
[1735622234754,0.05509091,92440.0,92439.0,0.3608]
[1735622234954,0.05509091,92440.0,92439.0,0.36084]
[1735622235764,0.054178,92440.0,92439.0,0.36084]
[1735622237459,0.055178,92440.0,92439.0,0.36084]
[1735622239655,0.055178,92440.0,92439.0,4e-05]
[1735622239867,0.415978,92440.0,92439.0,4e-05]
[1735622240363,0.054186,92426.0,92421.0,0.3608]
[1735622241563,0.087486,92426.0,92421.0,0.3608]
[1735622241770,0.088486,92426.0,92421.0,0.3608]
[1735622242263,0.056186,92426.0,92421.0,0.3608]
[1735622244064,0.002,92426.0,92421.0,0.3608]
[1735622244269,0.3608,92440.0,92421.0,0.3608]
[1735622244270,0.01259528,92454.0,92436.0,0.05418]
[1735622244461,0.054173,92447.0,92442.0,0.11260991]
[1735622244770,0.054173,92447.0,92446.0,4e-05]
[1735622245069,0.054173,92448.0,92446.0,4e-05]
[1735622245370,0.054173,92448.0,92447.0,4e-05]
[1735622249672,0.054168,92457.0,92447.0,4e-05]
[1735622249970,0.054168,92457.0,92444.0,0.37328543]
[1735622249971,0.054164,92463.0,92451.0,0.054211]
[1735622250566,0.054164,92463.0,92451.0,4e-05]
[1735622250772,0.054164,92463.0,92459.0,0.054166]
[1735622250964,0.01098324,92464.0,92462.0,0.054204]
[1735622251376,0.01098324,92464.0,92463.0,4e-05]
[1735622252378,0.01498324,92464.0,92463.0,4e-05]
[1735622252779,0.01498324,92464.0,92462.0,0.034204]
[1735622253362,0.01898324,92464.0,92462.0,0.034204]
[1735622254481,0.008,92464.0,92463.0,0.3608]
[1735622254672,0.004,92464.0,92463.0,0.3932]
[1735622254982,0.008,92464.0,92463.0,0.3932]
[1735622255482,0.004,92464.0,92463.0,0.3932]
[1735622255666,0.008,92464.0,92463.0,0.3932]
[1735622257669,0.008,92464.0,92463.0,0.3732]
[1735622258083,0.008,92464.0,92463.0,0.3408]
[1735622262677,0.008,92464.0,92463.0,0.3208]
[1735622266994,0.004,92464.0,92463.0,0.3208]
[1735622267293,4e-05,92465.0,92464.0,0.054163]
[1735622267694,4e-05,92465.0,92464.0,0.034203]
[1735622268587,4e-05,92465.0,92464.0,0.035203]
[1735622268786,0.00104,92465.0,92464.0,0.035203]
[1735622270396,4e-05,92465.0,92464.0,0.034203]
[1735622270597,4e-05,92465.0,92464.0,0.067403]
[1735622271296,0.00104,92465.0,92464.0,0.067403]
[1735622273390,0.00104,92465.0,92464.0,0.034203]
[1735622273590,4e-05,92465.0,92464.0,0.034203]
[1735622274389,0.00104,92465.0,92464.0,0.034203]
[1735622274898,0.00304,92465.0,92464.0,0.034203]
[1735622275105,0.00204,92465.0,92464.0,0.034203]
[1735622276388,4e-05,92465.0,92464.0,0.034203]
[1735622277296,0.00404,92465.0,92464.0,0.034203]
[1735622277699,0.00404,92465.0,92464.0,4e-05]
[1735622277894,0.00404,92465.0,92464.0,0.054203]
[1735622282805,0.00404,92465.0,92464.0,0.034203]
[1735622284406,0.09974267,92483.0,92464.0,0.034203]
[1735622284407,0.31515614,92479.0,92464.0,0.034203]
[1735622284908,0.36931014,92479.0,92478.0,4e-05]
[1735622286301,0.38147826,92479.0,92478.0,4e-05]
[1735622286509,0.38347826,92479.0,92478.0,4e-05]
[1735622286696,0.38447826,92479.0,92478.0,4e-05]
[1735622287298,0.39447826,92479.0,92478.0,4e-05]
[1735622287605,0.054158,92473.0,92470.0,0.034199]
[1735622288209,0.054158,92473.0,92463.0,0.3208]
[1735622288408,0.32815614,92479.0,92477.0,0.054155]
[1735622288604,0.013,92479.0,92478.0,0.3608]
[1735622288809,0.013,92479.0,92478.0,0.3908]
[1735622289507,0.014,92479.0,92478.0,0.3908]
[1735622290308,0.3608,92495.0,92478.0,0.3908]
[1735622290509,0.3608,92495.0,92494.0,0.054145]
[1735622291112,0.0331,92506.0,92498.0,0.054143]
[1735622291311,0.05414,92503.0,92498.0,0.054143]
[1735622291710,0.05414,92503.0,92501.0,4e-05]
[1735622292604,0.054141,92501.0,92498.0,0.034183]
[1735622293407,0.054142,92500.0,92498.0,0.034183]
[1735622294007,0.054142,92500.0,92498.0,0.036183]
[1735622294603,0.060142,92500.0,92498.0,0.036183]
[1735622295001,0.060142,92500.0,92498.0,0.002]
[1735622295609,0.060142,92500.0,92498.0,0.001]
[1735622295913,0.0322,92499.0,92498.0,0.002]
[1735622296305,0.054152,92484.0,92480.0,0.11260991]
[1735622296509,0.086452,92483.0,92478.0,0.084154]
[1735622297303,0.0323,92483.0,92477.0,0.3608]
[1735622298004,0.0333,92483.0,92474.0,0.11260991]
[1735622298816,0.0333,92483.0,92474.0,0.09423188]
[1735622299115,0.054156,92476.0,92474.0,0.09423188]
[1735622299612,0.054156,92476.0,92475.0,0.001]
[1735622300208,0.054156,92476.0,92474.0,0.002]
[1735622300712,0.055156,92476.0,92474.0,0.002]
[1735622302299,0.059156,92476.0,92471.0,0.054159]
[1735622302703,0.054157,92475.0,92471.0,0.034159]
[1735622302909,0.054157,92475.0,92474.0,0.001]
[1735622303217,0.054157,92475.0,92474.0,1.501]
[1735622303616,0.054157,92475.0,92474.0,1.5]
[1735622304016,0.057157,92475.0,92474.0,1.5]
[1735622304311,0.062157,92475.0,92474.0,1.501]
[1735622304718,0.063157,92475.0,92474.0,1.501]
[1735622305917,0.062157,92475.0,92474.0,1.5]
[1735622306405,0.061157,92475.0,92474.0,1.5]
[1735622307606,0.061157,92475.0,92474.0,1.48]
[1735622308118,0.061157,92475.0,92471.0,0.034159]
[1735622308617,0.054158,92474.0,92471.0,0.034159]
[1735622309509,0.054158,92474.0,92469.0,0.0124957]
[1735622309510,0.05416,92470.0,92469.0,0.0124957]
[1735622309719,0.05416,92470.0,92468.0,0.0329]
[1735622311622,0.05516,92470.0,92468.0,0.0329]
[1735622312123,0.05416,92470.0,92468.0,0.0329]
[1735622312319,0.05516,92470.0,92468.0,0.0329]
[1735622312620,0.05516,92470.0,92468.0,0.0129]
[1735622312922,0.004,92470.0,92469.0,0.05416]
[1735622313419,0.005,92470.0,92469.0,0.05416]
[1735622313920,0.003,92470.0,92469.0,0.05416]
[1735622314123,0.005,92470.0,92469.0,0.05416]
[1735622314517,0.005,92470.0,92469.0,0.08716]
[1735622314918,0.002,92470.0,92469.0,0.08716]
[1735622315117,0.002,92470.0,92469.0,0.08816]
[1735622315622,0.003,92470.0,92469.0,0.08716]
[1735622317627,0.003,92470.0,92469.0,0.03416]
[1735622322731,0.003,92470.0,92468.0,0.0129]
[1735622322925,0.003,92470.0,92469.0,0.05416]
[1735622325628,0.001,92470.0,92469.0,0.05416]
[1735622325827,0.003,92470.0,92469.0,0.05416]
[1735622327035,0.09973312,92501.0,92469.0,0.05416]
[1735622327222,0.09973312,92501.0,92483.0,0.07383484]
[1735622327223,0.054149,92488.0,92483.0,0.07383484]
[1735622327716,0.054149,92488.0,92484.0,0.054151]
[1735622327922,0.17504684,92511.0,92485.0,0.3608]
[1735622327923,0.12091084,92511.0,92485.0,0.3608]
[1735622328122,0.09973312,92511.0,92507.0,0.054137]
[1735622328532,0.09973312,92511.0,92505.0,4e-05]
[1735622328732,0.0328,92520.0,92509.0,0.054137]
[1735622329523,0.00904,92510.0,92509.0,0.054137]
[1735622329724,0.01611457,92510.0,92509.0,0.054137]
[1735622330133,0.01611457,92510.0,92507.0,0.001]
[1735622330330,0.054137,92509.0,92507.0,0.001]
[1735622330541,7.24e-05,92508.0,92507.0,0.001]
[1735622330832,7.24e-05,92508.0,92505.0,4e-05]
[1735622331220,7.035e-05,92506.0,92505.0,4e-05]
[1735622331628,0.03087035,92506.0,92505.0,4e-05]
[1735622332623,0.03087035,92506.0,92502.0,0.34084]
[1735622333137,0.09200835,92506.0,92505.0,0.001]
[1735622333325,0.09200835,92506.0,92505.0,0.002]
[1735622333326,0.10100835,92506.0,92505.0,0.002]
[1735622333525,0.100938,92506.0,92505.0,0.002]
[1735622333726,0.10104565,92506.0,92505.0,0.002]
[1735622334033,0.10104565,92506.0,92505.0,0.001]
[1735622334435,0.05414,92503.0,92502.0,0.34284]
[1735622335326,0.05424318,92503.0,92502.0,0.34284]
[1735622335832,0.05424318,92503.0,92502.0,0.34184]
[1735622336025,0.05424318,92503.0,92502.0,0.34084]
[1735622336528,0.06324318,92503.0,92502.0,0.34184]
[1735622336935,0.07024318,92503.0,92502.0,0.34284]
[1735622337738,0.07024318,92503.0,92502.0,0.32284]
[1735622338535,0.01610318,92503.0,92502.0,0.32284]
[1735622339538,0.01610318,92503.0,92502.0,1.82284]
[1735622341935,0.01610318,92503.0,92502.0,0.002]
[1735622342132,0.04910318,92503.0,92502.0,0.002]
[1735622343534,0.40990318,92503.0,92487.0,0.3608]
[1735622343728,0.054148,92488.0,92487.0,0.3608]
[1735622344134,0.05415,92485.0,92480.0,0.14500098]
[1735622344338,0.05415,92485.0,92484.0,0.3608]
[1735622344530,0.054146,92493.0,92484.0,0.3608]
[1735622344735,8.259e-05,92485.0,92484.0,0.3608]
[1735622345744,0.006,92488.0,92487.0,0.00091741]
[1735622346348,0.054147,92491.0,92486.0,4e-05]
[1735622346748,0.054147,92491.0,92489.0,4e-05]
[1735622347747,0.05415,92486.0,92484.0,0.34184]
[1735622349343,0.05315,92486.0,92484.0,0.34184]
[1735622349550,0.05615,92486.0,92484.0,0.34184]
[1735622349948,0.06015,92486.0,92484.0,0.34184]
[1735622351847,0.007,92486.0,92484.0,0.34184]
[1735622352054,0.054138,92500.0,92484.0,0.34184]
[1735622352248,0.054138,92500.0,92499.0,0.3608]
[1735622352638,0.054138,92500.0,92499.0,0.3408]
[1735622352841,0.033,92503.0,92499.0,0.3408]
[1735622353042,0.033,92503.0,92499.0,0.394938]
[1735622353254,0.003,92500.0,92499.0,0.394978]
[1735622353547,0.012,92500.0,92499.0,0.395978]
[1735622353955,0.003,92500.0,92499.0,0.394978]
[1735622354141,0.054135,92505.0,92499.0,0.396978]
[1735622354142,0.015,92503.0,92499.0,0.396978]
[1735622354654,0.006,92503.0,92501.0,0.054136]
[1735622355255,0.006,92503.0,92499.0,0.34284]
[1735622355656,4.179e-05,92500.0,92499.0,0.34284]
[1735622356755,0.00504179,92500.0,92499.0,0.34184]
[1735622356948,0.01404179,92500.0,92499.0,0.34284]
[1735622358851,0.01404179,92500.0,92499.0,0.32284]
[1735622362751,0.01404179,92500.0,92499.0,0.30284]
[1735622367559,0.01404179,92500.0,92499.0,0.28284]
[1735622367867,0.40544179,92500.0,92499.0,0.00204]
[1735622372559,0.40544179,92500.0,92484.0,0.32388]
[1735622372868,0.054146,92485.0,92484.0,0.32388]
[1735622373471,0.05421112,92485.0,92484.0,0.32388]
[1735622374069,0.05821112,92485.0,92484.0,0.32388]
[1735622375567,0.06121112,92485.0,92484.0,0.32388]
[1735622377662,0.06121112,92485.0,92484.0,0.30388]
[1735622378266,0.06121112,92485.0,92481.0,0.414948]
[1735622378573,6.295e-05,92482.0,92481.0,0.414948]
[1735622380363,0.00506295,92482.0,92481.0,0.414948]
[1735622380671,0.054141,92495.0,92481.0,0.3608]
[1735622380972,0.054141,92495.0,92494.0,0.3608]
[1735622381474,0.054141,92495.0,92493.0,4e-05]
[1735622382075,0.056141,92495.0,92493.0,4e-05]
[1735622382665,0.054142,92492.0,92484.0,0.054147]
[1735622382869,0.054142,92492.0,92485.0,0.11240098]
[1735622383065,0.054142,92492.0,92485.0,0.16654698]
[1735622383473,0.053142,92492.0,92485.0,0.16654698]
[1735622383871,0.013,92495.0,92486.0,0.0331]
[1735622384173,0.054144,92490.0,92486.0,0.0331]
[1735622384772,0.054144,92490.0,92486.0,0.03314]
[1735622384974,0.054144,92490.0,92486.0,0.087285]
[1735622385768,0.057144,92490.0,92486.0,0.087285]
[1735622386081,0.062144,92490.0,92486.0,0.087285]
[1735622387672,0.062144,92490.0,92486.0,0.067285]
[1735622391774,0.062144,92490.0,92486.0,0.01314]
[1735622392087,0.054145,92487.0,92486.0,0.01314]
[1735622392577,0.008,92490.0,92483.0,0.35394]
[1735622392895,6.757e-05,92484.0,92483.0,0.35394]
[1735622394981,0.00206757,92484.0,92483.0,0.35394]
[1735622395181,0.00506757,92484.0,92483.0,0.35394]
[1735622396280,0.00506757,92484.0,92483.0,0.37001526]
[1735622397772,0.00506757,92484.0,92483.0,0.35001526]
[1735622398082,0.00506757,92484.0,92483.0,0.33394]
[1735622402686,0.00506757,92484.0,92483.0,0.31394]
[1735622407589,0.00506757,92484.0,92483.0,0.29394]
[1735622412590,0.00506757,92484.0,92483.0,0.27394]
[1735622418895,0.00506757,92484.0,92483.0,0.25394]
[1735622422703,0.00506757,92484.0,92483.0,0.23394]
[1735622424591,0.00506757,92484.0,92480.0,0.00162175]
[1735622424592,0.054148,92481.0,92480.0,0.00162175]
[1735622425005,0.05421326,92481.0,92480.0,0.00162175]
[1735622425908,0.05621326,92481.0,92480.0,0.00162175]
[1735622426207,0.41701326,92481.0,92480.0,0.00162175]
[1735622426700,0.41901326,92481.0,92480.0,0.00162175]
[1735622430708,0.43418049,92481.0,92480.0,0.00162175]
[1735622437811,0.41901326,92481.0,92480.0,0.00162175]
[1735622445408,0.23906157,92481.0,92480.0,0.00162175]
[1735622446113,0.29320957,92481.0,92480.0,0.00162175]
[1735622453819,0.002,92481.0,92480.0,0.00162175]
[1735622454212,0.3608,92488.0,92480.0,0.00162175]
[1735622454522,0.3608,92488.0,92486.0,0.054183]
[1735622454817,0.09973373,92500.0,92486.0,0.054183]
[1735622454818,0.09973373,92500.0,92488.0,0.054139]
[1735622455023,0.09973373,92500.0,92498.0,0.054133]
[1735622455225,0.09973373,92500.0,92499.0,0.0625]
[1735622455420,4e-05,92510.0,92499.0,0.0625]
[1735622455421,0.3608,92509.0,92499.0,0.0625]
[1735622455624,4e-05,92510.0,92507.0,0.054128]
[1735622455920,4e-05,92510.0,92507.0,0.414968]
[1735622456320,4e-05,92510.0,92509.0,0.054127]
[1735622456922,0.11405421,92527.0,92520.0,0.05412]
[1735622457222,0.09969506,92527.0,92526.0,0.36084]
[1735622457820,0.09969506,92527.0,92526.0,0.34084]
[1735622458014,4e-05,92528.0,92526.0,0.34084]
[1735622458324,0.009,92527.0,92526.0,0.3408]
[1735622458917,4e-05,92528.0,92526.0,0.34084]
[1735622459114,0.009,92527.0,92526.0,0.34184]
[1735622459322,0.018,92527.0,92526.0,0.3428]
[1735622459625,0.018,92527.0,92526.0,0.34284]
[1735622459927,0.018,92527.0,92526.0,0.396957]
[1735622460225,0.009,92527.0,92526.0,0.396957]
[1735622460624,0.00904,92528.0,92526.0,0.395957]
[1735622460824,0.01804,92528.0,92526.0,0.396957]
[1735622461026,0.00904,92528.0,92527.0,4e-05]
[1735622461230,4e-05,92528.0,92527.0,4e-05]
[1735622461828,0.054106,92546.0,92534.0,0.054111]
[1735622462022,0.054106,92546.0,92544.0,0.3608]
[1735622462329,0.054106,92546.0,92545.0,4e-05]
[1735622462825,0.054106,92546.0,92544.0,0.34084]
[1735622463228,0.054146,92546.0,92544.0,0.34084]
[1735622463424,0.063146,92546.0,92545.0,0.001]
[1735622464120,0.072146,92546.0,92545.0,0.001]
[1735622464329,0.072146,92546.0,92544.0,0.34284]
[1735622464819,0.063146,92546.0,92544.0,0.34184]
[1735622465020,0.072146,92546.0,92545.0,0.001]
[1735622465524,0.072146,92546.0,92544.0,0.34284]
[1735622465916,0.072146,92546.0,92545.0,0.001]
[1735622466625,0.063146,92546.0,92544.0,0.34184]
[1735622466831,0.072146,92546.0,92544.0,0.34284]
[1735622467631,0.072146,92546.0,92544.0,0.32284]
[1735622467827,0.072146,92546.0,92545.0,0.001]
[1735622468425,0.072146,92546.0,92544.0,0.32284]
[1735622469226,0.063146,92546.0,92544.0,0.32184]
[1735622469426,0.072146,92546.0,92545.0,0.001]
[1735622470229,0.01804,92546.0,92545.0,0.0551]
[1735622470431,0.05409,92563.0,92545.0,0.4587]